[Event "43rd Guernsey Festival 2017"]
[Site "Vale"]
[Date "2017.10.19"]
[Round "5"]
[White "Bateman, Kerry"]
[Black "Ruigrok, Jacques"]
[Result "1/2-1/2"]
[ECO "C55"]
[WhiteElo "1764"]
[BlackElo "1679"]
[Annotator "NA RC"]
[PlyCount "100"]
[EventDate "2017.??.??"]
[EventType "swiss"]
[EventCountry "GCI"]
[SourceTitle "playchess.com"]
[Source "ChessBase"]
[SourceQuality "1"]
[TimeControl "40/6000+30:2400+30"]

1. e4 {[%emt 0:00:00]} e5 {[%emt 0:00:15]} 2. Nf3 {[%emt 0:00:00]} Nc6 {[%emt 0:00:11]} 3. Bc4 {[%emt 0:00:00]} Nf6 {[%emt 0:00:11]} 4. d3 {[%emt 0:00:25]} Be7 {[%emt 0:00:35]} 5. O-O {[%emt 0:01:35]} d6 {[%emt 0:00:38]} 6. Be3 {[%emt 0:03:14]} Bg4 {[%emt 0:03:26]} 7. h3 {[%emt 0:04:22]} Bxf3 {[%emt 0:02:41]} 8. Qxf3 {[%emt 0:01:23]} Na5 {[%emt 0:07:54]} 9. Bb3 {[%emt 0:06:35]} Nxb3 {[%emt 0:02:12]} 10. axb3 {[%emt 0:00:13]} a6 {[%emt 0:00:53]} 11. Nc3 {[%emt 0:02:46]} O-O {[%emt 0:02:45]} 12. g4 {[%emt 0:07:45]} h6 {[%emt 0:10:02]} 13. Qg2 {[%emt 0:03:01]} g5 {[%emt 0:08:16]} 14. Ne2 {[%emt 0:00:41]} d5 {[%emt 0:05:13]} 15. Rad1 {[%emt 0:06:57]} c6 {[%emt 0:04:03]} 16. Ng3 {[%emt 0:00:35]} Kh7 {[%emt 0:05:36]} 17. Nf5 {[%emt 0:00:29]} Rg8 {[%emt 0:02:13]} 18. f3 {[%emt 0:02:06]} Ne8 {[%emt 0:05:10]} 19. Qf2 {[%emt 0:03:06]} d4 {[%emt 0:02:31]} 20. Bc1 {[%emt 0:00:10]} Ng7 {[%emt 0:01:15]} 21. Ng3 {[%emt 0:02:53]} Ne6 {[%emt 0:01:28]} 22. Kg2 {[%emt 0:05:57]} Nf4+ {[%emt 0:08:34]} 23. Bxf4 {[%emt 0:00:23]} gxf4 {[%emt 0:00:24]} 24. Nf5 {[%emt 0:00:52]} Rg6 {[%emt 0:04:20]} 25. Rh1 {[%emt 0:00:41]} Qd7 {[%emt 0:01:54]} 26. Rdg1 {[%emt 0:03:27]} Rag8 {[%emt 0:04:51]} 27. Kf1 {[%emt 0:00:28]} Qd8 {[%emt 0:04:39]} 28. Qd2 {[%emt 0:04:31]} Bf8 {[%emt 0:01:37]} 29. Ke2 {[%emt 0:01:45]} Qb6 {[%emt 0:00:35]} 30. Ra1 {[%emt 0:00:43]} Bb4 {[%emt 0:03:44]} 31. c3 {[%emt 0:05:19]} dxc3 {[%emt 0:00:45]} 32. bxc3 {[%emt 0:00:44]} Bd6 {[%emt 0:02:17]} 33. Rhc1 {[%emt 0:08:32]} Rd8 {[%emt 0:00:50]} 34. b4 {[%emt 0:02:53]} Rgg8 {[%emt 0:03:29]} 35. Rc2 {[%emt 0:03:41]} Rd7 {[%emt 0:00:57]} 36. Rb2 {[%emt 0:04:09]} Rgd8 {[%emt 0:01:18]} 37. Qe1 {[%emt 0:02:52]} Be7 {[%emt 0:02:40]} 38. Rd2 {[%emt 0:05:20]} Bf8 {[%emt 0:03:27]} 39. Qh4 {[%emt 0:05:12]} Rd6 {[%emt 0:03:25]} 40. Rad1 {[%emt 0:08:36]} Rg6 {[%emt 0:42:08]} 41. d4 {[%emt 0:44:27]} Rd7 {[%emt 0:01:02]} 42. Qf2 {[%emt 0:00:00]} Qb5+ {[%emt 0:00:00]} 43. Ke1 {[%emt 0:00:00]} Qc4 {[%emt 0:00:00]} 44. Rc2 {[%emt 0:00:00]} exd4 {[%emt 0:00:00]} 45. Rxd4 {[%emt 0:00:00]} Rxd4 {[%emt 0:00:00]} 46. Nxd4 {[%emt 0:00:00]} c5 {[%emt 0:00:00]} 47. bxc5 {[%emt 0:00:00]} Bxc5 {[%emt 0:00:00]} 48. Qe2 {[%emt 0:00:00]} Qa4 {[%emt 0:00:00]} 49. Nf5 {[%emt 0:00:00]} Qa1+ {[%emt 0:00:00]} 50. Qd1 {[%emt 0:00:00]} Qxd1+ 1/2-1/2

[Event "43rd Guernsey Festival 2017"]
[Site "Vale"]
[Date "2017.10.19"]
[Round "5"]
[White "Goris-Schouwstra, Adry"]
[Black "Foran, Barry"]
[Result "1-0"]
[ECO "D04"]
[WhiteElo "1754"]
[BlackElo "1636"]
[Annotator "NA RC"]
[PlyCount "23"]
[EventDate "2017.??.??"]
[EventType "swiss"]
[EventCountry "GCI"]
[SourceTitle "playchess.com"]
[Source "ChessBase"]
[SourceQuality "1"]
[TimeControl "40/6000+30:2400+30"]

1. d4 d5 2. Nf3 Nf6 3. e3 Bg4 4. Be2 e6 5. Nbd2 Be7 6. h3 Bf5 7. O-O O-O 8. c4 Nbd7 9. a3 c5 10. cxd5 exd5 11. dxc5 Bxc5 12. b4 1-0

[Event "43rd Guernsey Festival 2017"]
[Site "Vale"]
[Date "2017.10.19"]
[Round "5"]
[White "Kershaw, Graham"]
[Black "Hoogakker, Peter"]
[Result "1/2-1/2"]
[ECO "B00"]
[WhiteElo "1712"]
[BlackElo "1769"]
[Annotator "NA RC"]
[PlyCount "76"]
[EventDate "2017.??.??"]
[EventType "swiss"]
[EventCountry "GCI"]
[SourceTitle "playchess.com"]
[Source "ChessBase"]
[SourceQuality "1"]
[TimeControl "40/6000+30:2400+30"]

1. e4 {[%emt 0:00:00]} d6 {[%emt 0:00:02]} 2. d4 {[%emt 0:00:00]} Nf6 {[%emt 0:00:04]} 3. Nd2 {[%emt 0:02:19]} e5 {[%emt 0:01:38]} 4. d5 {[%emt 0:01:38]} c6 {[%emt 0:02:21]} 5. c4 {[%emt 0:00:28]} Nbd7 {[%emt 0:01:59]} 6. h3 {[%emt 0:06:00]} Qa5 {[%emt 0:01:10]} 7. Ngf3 {[%emt 0:04:45]} Nxe4 {[%emt 0:04:55]} 8. a3 {[%emt 0:00:13]} cxd5 {[%emt 0:07:35]} 9. b4 {[%emt 0:00:59]} Qb6 {[%emt 0:05:16]} 10. c5 {[%emt 0:08:59]} dxc5 {[%emt 0:02:54]} 11. Nxe4 {[%emt 0:20:05]} dxe4 {[%emt 0:00:11]} 12. Ng5 {[%emt 0:00:24]} Be7 {[%emt 0:11:30]} 13. Nxe4 {[%emt 0:12:52]} cxb4 {[%emt 0:06:32]} 14. Be3 {[%emt 0:01:44]} Qg6 {[%emt 0:04:15]} 15. Qd5 {[%emt 0:05:52]} O-O {[%emt 0:09:08]} 16. Bd3 {[%emt 0:01:11]} Qc6 {[%emt 0:11:38]} 17. Qa2 {[%emt 0:07:51]} Nf6 {[%emt 0:05:36]} 18. Rc1 {[%emt 0:00:35]} Qa4 {[%emt 0:03:14]} 19. Rc7 {[%emt 0:11:06]} b3 {[%emt 0:04:15]} 20. Qb1 {[%emt 0:01:23]} Nxe4 {[%emt 0:01:21]} 21. Rxe7 {[%emt 0:07:53]} Qa5+ {[%emt 0:00:18]} 22. Kf1 {[%emt 0:00:39]} Qxa3 {[%emt 0:05:58]} 23. Rxe5 {[%emt 0:00:48]} Nf6 {[%emt 0:02:38]} 24. Bc5 {[%emt 0:04:19]} Qa2 {[%emt 0:01:06]} 25. Bxf8 {[%emt 0:00:12]} Qxb1+ {[%emt 0:02:18]} 26. Bxb1 {[%emt 0:00:02]} Kxf8 {[%emt 0:00:13]} 27. Ra5 {[%emt 0:05:09]} Be6 {[%emt 0:00:20]} 28. Bd3 {[%emt 0:00:56]} Nd5 {[%emt 0:04:17]} 29. Ke1 {[%emt 0:03:09]} b6 {[%emt 0:02:28]} 30. Ra3 {[%emt 0:01:46]} Nb4 {[%emt 0:00:52]} 31. Be4 {[%emt 0:00:04]} Bd5 {[%emt 0:02:15]} 32. Bxd5 {[%emt 0:00:28]} Nxd5 {[%emt 0:02:02]} 33. Rxb3 {[%emt 0:00:06]} a5 {[%emt 0:00:20]} 34. Kd2 {[%emt 0:00:35]} Rd8 {[%emt 0:00:43]} 35. Kc2 {[%emt 0:00:44]} Nb4+ {[%emt 0:00:40]} 36. Kc3 {[%emt 0:01:09]} b5 {[%emt 0:02:22]} 37. Rf1 {[%emt 0:01:12]} Rd3+ {[%emt 0:01:14]} 38. Kb2 {[%emt 0:00:04]} Rd2+ {[%emt 0:01:43]} 1/2-1/2

[Event "43rd Guernsey Festival 2017"]
[Site "Vale"]
[Date "2017.10.19"]
[Round "5"]
[White "Finch, Russell"]
[Black "Glover, John"]
[Result "1/2-1/2"]
[ECO "A57"]
[WhiteElo "1689"]
[BlackElo "1765"]
[Annotator "NA RC"]
[PlyCount "99"]
[EventDate "2017.??.??"]
[EventType "swiss"]
[EventCountry "GCI"]
[SourceTitle "playchess.com"]
[Source "ChessBase"]
[SourceQuality "1"]
[TimeControl "40/6000+30:2400+30"]

1. d4 {[%emt 0:00:00]} Nf6 {[%emt 0:00:10]} 2. c4 {[%emt 0:00:00]} c5 {[%emt 0:00:13]} 3. d5 {[%emt 0:00:08]} b5 {[%emt 0:00:08]} 4. a4 {[%emt 0:00:56]} b4 {[%emt 0:03:13]} 5. g3 {[%emt 0:02:14]} g6 {[%emt 0:01:22]} 6. Bg2 {[%emt 0:00:43]} d6 {[%emt 0:00:36]} 7. b3 {[%emt 0:02:49]} Bg7 {[%emt 0:00:18]} 8. Bb2 {[%emt 0:00:12]} a5 {[%emt 0:01:11]} 9. Nd2 {[%emt 0:00:30]} O-O {[%emt 0:01:27]} 10. Qc2 {[%emt 0:01:21]} Ra7 {[%emt 0:00:42]} 11. Ngf3 {[%emt 0:07:23]} Nbd7 {[%emt 0:00:59]} 12. O-O {[%emt 0:01:01]} Re8 {[%emt 0:05:23]} 13. Rfe1 {[%emt 0:03:04]} Nf8 {[%emt 0:05:55]} 14. e4 {[%emt 0:02:11]} e5 {[%emt 0:03:07]} 15. Nh4 {[%emt 0:07:16]} Nh5 {[%emt 0:06:31]} 16. Bf3 {[%emt 0:07:45]} Nf6 {[%emt 0:01:29]} 17. Qd1 {[%emt 0:03:23]} h6 {[%emt 0:02:24]} 18. Nf1 {[%emt 0:01:51]} N6h7 {[%emt 0:05:19]} 19. Bg4 {[%emt 0:05:03]} Nf6 {[%emt 0:10:50]} 20. Bxc8 {[%emt 0:03:18]} Qxc8 {[%emt 0:00:09]} 21. Qf3 {[%emt 0:00:51]} Qg4 {[%emt 0:03:09]} 22. Qxg4 {[%emt 0:00:32]} Nxg4 {[%emt 0:00:08]} 23. f3 {[%emt 0:02:32]} Nf6 {[%emt 0:00:55]} 24. Ne3 {[%emt 0:02:07]} Kh7 {[%emt 0:06:47]} 25. Bc1 {[%emt 0:02:38]} Nh5 {[%emt 0:02:25]} 26. Ra2 {[%emt 0:04:52]} Bf6 {[%emt 0:01:19]} 27. Nhg2 {[%emt 0:03:57]} Bd8 {[%emt 0:03:01]} 28. Ng4 {[%emt 0:03:40]} g5 {[%emt 0:04:57]} 29. N2e3 {[%emt 0:05:39]} Ng7 {[%emt 0:01:11]} 30. Kg2 {[%emt 0:06:29]} f6 {[%emt 0:01:04]} 31. Rh1 {[%emt 0:00:32]} Rf7 {[%emt 0:02:03]} 32. h4 {[%emt 0:02:15]} h5 {[%emt 0:14:04]} 33. hxg5 {[%emt 0:10:36]} Kg6 {[%emt 0:03:23]} 34. Nf5 {[%emt 0:05:10]} Nxf5 35. exf5+ Kxf5 {[%emt 0:03:14]} 36. Nh6+ {[%emt 0:00:42]} Kg6 {[%emt 0:00:33]} 37. Nxf7 {[%emt 0:00:20]} Kxf7 38. Rxh5 fxg5 {[%emt 0:03:01]} 39. Re2 {[%emt 0:04:50]} Kg6 {[%emt 0:01:14]} 40. g4 {[%emt 0:00:28]} Bf6 {[%emt 0:41:40]} 41. Kg3 {[%emt 0:43:12]} Re7 {[%emt 0:00:44]} 42. Kf2 {[%emt 0:02:27]} Rh7 {[%emt 0:00:20]} 43. Rxh7 {[%emt 0:00:22]} Nxh7 {[%emt 0:00:10]} 44. Kg3 {[%emt 0:01:30]} Nf8 {[%emt 0:01:17]} 45. Rh2 {[%emt 0:01:35]} Nh7 {[%emt 0:04:17]} 46. Rh5 {[%emt 0:00:21]} Nf8 {[%emt 0:00:26]} 47. Kf2 {[%emt 0:00:16]} Nh7 {[%emt 0:00:49]} 48. Ke3 {[%emt 0:00:09]} Nf8 {[%emt 0:00:52]} 49. Ke4 {[%emt 0:00:07]} Nh7 {[%emt 0:00:47]} 50. Rxh7 {[%emt 0:00:43]} 1/2-1/2

[Event "43rd Guernsey Festival 2017"]
[Site "Vale"]
[Date "2017.10.20"]
[Round "6"]
[White "Hoogland, Dirk"]
[Black "Bowmer, Kevin"]
[Result "1-0"]
[ECO "A36"]
[WhiteElo "2098"]
[BlackElo "2041"]
[Annotator "NA RC"]
[PlyCount "82"]
[EventDate "2017.??.??"]
[EventType "swiss"]
[EventCountry "GCI"]
[SourceTitle "playchess.com"]
[Source "ChessBase"]
[SourceQuality "1"]
[TimeControl "40/6000+30:2400+30"]

{[%evp 8,81,8,-6,3,-9,13,4,4,32767,32767,32767,32767,0,16,8,0,14,8,12,0,-8,-8,-5,-6,32767,-16,-19,-22,-32,-29,-18,-18,-18,0,-42,-30,-27,-25,-40,32767,32767,32767,32767,32767,-9,0,-14,22,0,0,16,0,8,11,4,27,15,38,23,24,30,39,0,0,0,12,6,162,0,0,0,15,8,10,4]} 1. c4 {[%emt 0:00:00]} g6 {[%emt 0:00:10]} 2. g3 {[%emt 0:00:00]} Bg7 {[%emt 0:00:11]} 3. Nc3 {[%emt 0:00:00]} c5 {[%emt 0:00:29]} 4. Bg2 {[%emt 0:00:21]} Nc6 {[%emt 0:00:30]} 5. e4 {[%emt 0:00:32]} d6 {[%emt 0:02:52]} 6. Nge2 {[%emt 0:00:54]} e5 {[%emt 0:03:54]} 7. O-O {[%emt 0:01:51]} Nge7 {[%emt 0:00:46]} 8. d3 {[%emt 0:01:36]} O-O {[%emt 0:00:56]} 9. a3 {[%emt 0:01:05]} a6 {[%emt 0:07:40]} 10. Rb1 {[%emt 0:00:51]} Rb8 {[%emt 0:00:30]} 11. b4 {[%emt 0:06:56] LiveBook: 11 Games} cxb4 {[%emt 0:03:16]} 12. axb4 {[%emt 0:00:30]} b5 {[%emt 0:00:59]} 13. cxb5 {[%emt 0:02:07]} axb5 {[%emt 0:00:29]} 14. Be3 {[%emt 0:01:22]} Nd4 {[%emt 0:09:17]} 15. Qd2 {[%emt 0:01:20]} Be6 {[%emt 0:10:12]} 16. f4 {[%emt 0:02:45]} Qd7 {[%emt 0:10:32]} 17. Bf2 {[%emt 0:05:01]} Nxe2+ {[%emt 0:16:15]} 18. Nxe2 {[%emt 0:01:34]} Rfc8 {[%emt 0:06:26]} 19. Rfc1 {[%emt 0:07:55]} Ra8 {[%emt 0:04:16]} 20. Rxc8+ {[%emt 0:15:41]} Rxc8 {[%emt 0:01:16]} 21. Rc1 {[%emt 0:10:32]} Rxc1+ {[%emt 0:02:04]} 22. Qxc1 {[%emt 0:00:57]} Qc6 {[%emt 0:01:26]} 23. Qb1 {[%emt 0:00:25]} Qc7 {[%emt 0:01:37]} 24. fxe5 {[%emt 0:05:07]} dxe5 {[%emt 0:00:34]} 25. Bc5 {[%emt 0:00:18]} Bh6 {[%emt 0:03:49]} 26. Qa1 {[%emt 0:03:12]} Bf8 {[%emt 0:05:16]} 27. Nc3 {[%emt 0:05:21]} Nc8 {[%emt 0:02:53]} 28. Qa3 {[%emt 0:01:52]} Qd7 {[%emt 0:04:03]} 29. Nd5 {[%emt 0:02:46]} Bxd5 {[%emt 0:04:47]} 30. exd5 {[%emt 0:00:10]} Bd6 {[%emt 0:01:44]} 31. Qa8 {[%emt 0:01:15]} Kg7 {[%emt 0:00:51]} 32. Qa6 {[%emt 0:01:56]} Kf8 {[%emt 0:01:50]} 33. Qa1 {[%emt 0:03:32]} f6 {[%emt 0:01:20]} 34. Qa6 {[%emt 0:00:41]} Kf7 {[%emt 0:00:32]} 35. d4 {[%emt 0:01:21]} exd4 {[%emt 0:00:49]} 36. Bxd4 {[%emt 0:00:16]} Be7 {[%emt 0:01:32]} 37. Bc5 {[%emt 0:01:55]} Bd6 $2 {[%emt 0:01:06] [#]} (37... Bxc5+ $11 {and Black stays safe.} 38. bxc5 Qg4) 38. Qa8 $2 {[%emt 0:01:28]} (38. Bf1 $1 $16) 38... Qc7 {[%emt 0:00:42]} 39. Qa3 {[%emt 0:00:36]} Qe7 {[%emt 0:01:04]} 40. Qc1 {[%emt 0:00:30]} Kg7 {[%emt 0:40:23]} 41. Bh3 $11 {[%emt 0:41:27]} Bc7 1-0

[Event "43rd Guernsey Festival 2017"]
[Site "Vale"]
[Date "2017.10.20"]
[Round "6"]
[White "Reijneveld, Ad"]
[Black "Kozlowski, Thierry"]
[Result "1-0"]
[ECO "B31"]
[WhiteElo "2078"]
[BlackElo "2002"]
[Annotator "NA RC"]
[PlyCount "81"]
[EventDate "2017.??.??"]
[EventType "swiss"]
[EventCountry "GCI"]
[SourceTitle "playchess.com"]
[Source "ChessBase"]
[SourceQuality "1"]
[TimeControl "40/6000+30:2400+30"]

{[%evp 8,81,20,20,53,24,35,20,19,20,12,32,11,4,25,16,50,56,73,56,61,22,68,72,79,59,62,18,126,127,200,196,205,103,110,32767,32767,32767,143,143,150,118,162,169,202,197,277,32767,32767,32767,32767,32767,32767,340,387,393,898,994,1052,1016,1068,1456,1117,1232,29989,29990,29991,29992,29992,29993,29993,29978,29972,29979,29974,12843]} 1. e4 {[%emt 0:00:00]} c5 {[%emt 0:06:35]} 2. Nf3 {[%emt 0:00:32]} Nc6 {[%emt 0:00:06]} 3. Bb5 {[%emt 0:00:28]} g6 {[%emt 0:00:05]} 4. O-O {[%emt 0:00:28]} Bg7 {[%emt 0:00:01]} 5. c3 {[%emt 0:00:39]} Qb6 {[%emt 0:00:43]} 6. a4 {[%emt 0:02:32] B31: Sicilian: 2...Nc6 3 Bb5 g6} Nf6 {[%emt 0:09:50]} 7. e5 {[%emt 0:04:06]} Nd5 {[%emt 0:00:08]} 8. d4 {[%emt 0:00:59]} cxd4 {[%emt 0:01:44]} 9. cxd4 {[%emt 0:00:18] LiveBook: 4 Games} O-O {[%emt 0:01:26]} 10. Nc3 {[%emt 0:02:23]} Nxc3 $1 {[%emt 0:05:20]} 11. bxc3 {[%emt 0:00:08]} a6 $146 {[%emt 0:02:07]} ({Predecessor:} 11... d6 12. exd6 exd6 13. Ba3 Na5 14. Ng5 h6 {1-0 (31) Smirin,I (2590)-Schmittdiel,E (2450) Wijk aan Zee 1993}) 12. Bc4 {[%emt 0:07:42]} d6 {[%emt 0:05:45]} 13. exd6 {[%emt 0:00:21]} exd6 {[%emt 0:00:17]} 14. Bf4 {[%emt 0:01:59]} Ne7 {[%emt 0:02:23]} 15. Re1 {[%emt 0:08:35]} d5 {[%emt 0:12:11]} 16. Ba2 {[%emt 0:12:46]} Be6 {[%emt 0:03:41]} 17. Qd2 {[%emt 0:02:06]} Rfc8 {[%emt 0:08:05]} ({Better is} 17... Rac8 $14) 18. Ng5 {[%emt 0:10:24]} Rc6 {[%emt 0:05:06]} (18... Re8 $16 {was worth a try.}) 19. Rab1 {[%emt 0:01:07]} Qa7 {[%emt 0:00:33]} 20. Rb3 {[%emt 0:18:08]} (20. Nxe6 $18 {and White stays clearly on top.} fxe6 21. Bg5) 20... b6 {[%emt 0:15:09]} 21. Nxe6 {[%emt 0:03:14]} fxe6 {[%emt 0:00:09]} 22. Bb1 {[%emt 0:00:40]} Rf8 {[%emt 0:20:04]} 23. Bd3 {[%emt 0:01:30]} Nf5 {[%emt 0:01:22]} 24. h3 {[%emt 0:10:54]} a5 {[%emt 0:07:12]} 25. Bh2 {[%emt 0:07:53]} Qf7 {[%emt 0:00:38]} 26. Reb1 {[%emt 0:00:31]} Nxd4 {[%emt 0:01:02]} 27. cxd4 {[%emt 0:00:13]} Bxd4 {[%emt 0:00:03]} 28. Bg3 {[%emt 0:01:09]} e5 {[%emt 0:00:08]} 29. Kh2 {[%emt 0:03:03]} Rf6 {[%emt 0:01:53]} 30. f3 {[%emt 0:00:25]} Qd7 {[%emt 0:01:02]} 31. Rb5 {[%emt 0:00:56]} Rxf3 {[%emt 0:00:33]} (31... Rd6 $142 32. Re1 Qe6) 32. gxf3 {[%emt 0:00:16]} Rxf3 {[%emt 0:00:05]} 33. Rf1 {[%emt 0:01:30]} Be3 {[%emt 0:00:47]} 34. Qe2 {[%emt 0:00:49]} Rxf1 {[%emt 0:00:40]} 35. Qxf1 {[%emt 0:00:05]} e4 {[%emt 0:00:03]} 36. Rxd5 {[%emt 0:00:47]} Qe7 {[%emt 0:00:54]} 37. Bc4 {[%emt 0:00:47]} Kg7 {[%emt 0:00:15]} 38. Be5+ {[%emt 0:00:54]} Kh6 {[%emt 0:00:13]} 39. Bf4+ {[%emt 0:00:09]} Bxf4+ {[%emt 0:00:34]} 40. Qxf4+ {[%emt 0:00:06]} Kg7 {[%emt 0:40:09]} 41. Qe5+ $18 {[%emt 0:40:07]} 1-0

[Event "43rd Guernsey Festival 2017"]
[Site "Vale"]
[Date "2017.10.20"]
[Round "6"]
[White "Hamperl, Fred"]
[Black "Sielicki, Tomasz"]
[Result "1-0"]
[ECO "C44"]
[WhiteElo "2062"]
[BlackElo "1997"]
[Annotator "NA RC"]
[PlyCount "101"]
[EventDate "2017.??.??"]
[EventType "swiss"]
[EventCountry "GCI"]
[SourceTitle "playchess.com"]
[Source "ChessBase"]
[SourceQuality "1"]
[TimeControl "40/6000+30:2400+30"]

{[%evp 8,101,6,-21,15,12,8,6,0,0,5,0,20,32767,32767,32767,32767,32767,5,9,20,0,0,3,30,12,51,47,170,147,152,43,115,32767,328,32767,108,71,94,81,150,93,85,86,863,745,929,975,927,96,127,101,96,30,113,112,106,92,106,108,188,184,188,220,207,196,220,257,215,269,375,325,324,323,358,277,32767,32767,216,32767,666,32767,32767,32767,12840,29947,6319,29983,29989,29983,29980,29985,29994,29995,29996,29991]} 1. e4 {[%emt 0:00:00]} e5 {[%emt 0:00:12]} 2. Nf3 {[%emt 0:00:00]} Nc6 {[%emt 0:00:10]} 3. d4 {[%emt 0:00:18]} exd4 {[%emt 0:00:14]} 4. Nxd4 {[%emt 0:00:05]} Nf6 {[%emt 0:00:53]} 5. Nxc6 {[%emt 0:00:11]} bxc6 {[%emt 0:00:20]} 6. Bd3 {[%emt 0:00:16]} d5 {[%emt 0:00:32]} 7. exd5 {[%emt 0:00:23]} cxd5 {[%emt 0:00:17]} 8. O-O {[%emt 0:01:40]} Be7 {[%emt 0:00:30]} 9. c4 {[%emt 0:00:33]} O-O {[%emt 0:00:30]} 10. cxd5 {[%emt 0:05:00] C45: Scotch Game} (10. Nc3 Bb7 11. Qb3 Ba6 12. Nxd5 Nxd5 13. cxd5 Rb8 14. Qc2 Bxd3 15. Qxd3 Bf6 16. Bf4 Rb4 17. Qf3 Bxb2 {½-½ (49) Mrazik,L (2508)-Frey Beckman,K (2700) ICCF email 2004}) 10... Bb7 {[%emt 0:02:09]} 11. Nc3 {[%emt 0:00:29]} Nxd5 {[%emt 0:00:52]} 12. Bd2 $146 {[%emt 0:01:19]} ({Predecessor:} 12. Qh5 g6 13. Qh3 Nxc3 14. bxc3 Qc8 15. Qg3 Bd6 16. Bf4 Rd8 17. Rfd1 Qe6 18. Bf1 Bd5 19. Bxd6 Rxd6 20. c4 Bxc4 21. Rxd6 cxd6 22. Bxc4 Qxc4 23. Qxd6 {½-½ (23) Ivanov,S (2329)-Dokutchaev,A (2414) Finland 2016}) 12... Nb4 {[%emt 0:13:38]} 13. Be4 {[%emt 0:02:00]} Bxe4 {[%emt 0:04:31]} 14. Nxe4 {[%emt 0:00:20]} Rb8 {[%emt 0:09:30]} 15. Bc3 {[%emt 0:06:10]} f5 {[%emt 0:20:13]} 16. Ng3 {[%emt 0:05:09]} g6 {[%emt 0:15:24]} 17. Qe2 {[%emt 0:04:06]} Rf7 {[%emt 0:09:31]} (17... Bf6 $14) 18. Rfd1 {[%emt 0:05:55]} Qc8 {[%emt 0:03:13] [#]} 19. Qc4 {[%emt 0:21:11]} (19. a3 $1 $16 {[%cal Ra3b4]} Na6 20. Rd2) 19... Rb6 {[%emt 0:09:26]} ({Black should try} 19... c5 $14) 20. a3 {[%emt 0:03:32]} Rc6 $2 {[%emt 0:04:03]} (20... Nc6 $16 21. Re1 Bf8) 21. Qb5 {[%emt 0:05:19]} Rb6 {[%emt 0:00:19]} 22. Qa4 {[%emt 0:05:30]} Na6 {[%emt 0:01:52]} 23. Rd5 {[%emt 0:05:28]} Bf6 {[%emt 0:02:18]} (23... c5 $14) 24. Re1 {[%emt 0:06:46]} (24. Rad1 $18 Rd6 25. Bxf6 (25. Rxd6 cxd6 26. Rxd6 Bxc3 $16) 25... Rfxf6 26. Ne2) 24... Re6 {[%emt 0:05:11]} 25. Red1 {[%emt 0:07:38]} Qb7 $2 {[%emt 0:01:09]} (25... Qe8 $16 26. Qb3 Bg5) 26. Bxf6 {[%emt 0:04:01]} Rexf6 {[%emt 0:00:23]} 27. Rd8+ {[%emt 0:03:28]} Kg7 {[%emt 0:00:24]} 28. R1d7 $2 {[%emt 0:05:19]} (28. Qf4 $1 $18 {[%cal Rf4g5] is the precise move to win.} Re7 {[#]} 29. Nh5+ $1 {[%mdl 512]} gxh5 30. Qg5+ Rg6 31. Qxe7+ Kh6 32. Qe3+ Rg5 33. R8d6+ $1 {[%mdl 512]} cxd6 34. Rxd6+ Kg7 35. Qxg5+ Kf8 36. Qf6+ Qf7 37. Rd8#) 28... Qb6 {[%emt 0:01:38]} 29. Rxf7+ {[%emt 0:01:51]} Rxf7 {[%emt 0:00:35]} 30. Rd7 {[%emt 0:00:55]} (30. b4 $16) 30... Qe6 {[%emt 0:02:54]} ({Black should play} 30... Nb8 $14 31. Rxf7+ Kxf7) 31. Qd4+ {[%emt 0:00:52]} Qf6 {[%emt 0:00:29]} 32. Rxf7+ {[%emt 0:00:21]} Kxf7 {[%emt 0:00:07]} 33. Qxa7 {[%emt 0:00:35]} Qc6 {[%emt 0:01:39]} (33... Qd6 $16) 34. Qd4 {[%emt 0:01:32]} Qe6 {[%emt 0:01:23]} 35. h3 {[%emt 0:01:13]} c5 {[%emt 0:00:12]} 36. Qc3 {[%emt 0:00:37]} c4 {[%emt 0:00:30]} 37. Nf1 {[%emt 0:00:51]} ({Resist} 37. Qh8 $6 h5 $18) 37... Nc5 {[%emt 0:00:13]} 38. Ne3 {[%emt 0:00:43]} Na4 {[%emt 0:00:57]} (38... Ne4 {might work better.} 39. Qxc4 Qxc4 40. Nxc4 Ke6) 39. Qb4 {[%emt 0:01:47]} Nb6 {[%emt 0:00:08]} 40. a4 {[%emt 0:02:49]} f4 {[%emt 0:40:49]} 41. Ng4 {[%emt 0:06:53]} h5 {[%emt 0:00:00]} 42. Ne5+ {[%emt 0:01:06]} Qxe5 {[%emt 0:00:00]} 43. Qxb6 {[%emt 0:00:19]} Kg7 $2 {[%emt 0:00:00]} (43... g5 44. Qb4 Kg6) 44. a5 {[%emt 0:09:06]} f3 {[%emt 0:00:00]} 45. a6 {[%emt 0:04:37]} fxg2 {[%emt 0:00:00]} 46. Qb7+ {[%emt 0:02:06]} Kh6 {[%emt 0:00:00]} 47. a7 {[%emt 0:02:27]} c3 {[%emt 0:00:00]} 48. bxc3 {[%emt 0:01:14]} Qxc3 {[%emt 0:00:00]} 49. a8=Q {[%emt 0:02:07]} Qe1+ {[%emt 0:00:00]} 50. Kxg2 {[%emt 0:00:17]} Qe5 {[%emt 0:00:00]} 51. Qf3 {[%emt 0:00:42]} 1-0

[Event "43rd Guernsey Festival 2017"]
[Site "Vale"]
[Date "2017.10.20"]
[Round "6"]
[White "Kirby, Peter J"]
[Black "Curtis, John E"]
[Result "1/2-1/2"]
[ECO "D14"]
[WhiteElo "1996"]
[BlackElo "2093"]
[Annotator "NA RC"]
[PlyCount "23"]
[EventDate "2017.??.??"]
[EventType "swiss"]
[EventCountry "GCI"]
[SourceTitle "playchess.com"]
[Source "ChessBase"]
[SourceQuality "1"]
[TimeControl "40/6000+30:2400+30"]

{[%evp 8,19,19,13,29,32767,32767,32767,32767,32767,32767,32767,32767,0]} 1. d4 {[%emt 0:00:00]} d5 {[%emt 0:00:25]} 2. c4 {[%emt 0:00:39]} c6 {[%emt 0:01:35]} 3. cxd5 {[%emt 0:01:12]} cxd5 {[%emt 0:00:34]} 4. Nf3 {[%emt 0:01:00]} Nc6 {[%emt 0:02:19]} 5. Nc3 {[%emt 0:02:52]} Nf6 {[%emt 0:01:06]} 6. Bf4 {[%emt 0:03:00]} Bf5 {[%emt 0:00:46]} 7. e3 {[%emt 0:02:25]} e6 {[%emt 0:02:23]} 8. Bd3 {[%emt 0:01:08]} Bxd3 {[%emt 0:01:16]} 9. Qxd3 {[%emt 0:00:13]} Bd6 {[%emt 0:01:16]} 10. Bxd6 $11 {[%emt 0:02:53]} Qxd6 {[%emt 0:00:05]} 11. O-O {[%emt 0:02:24]} O-O {[%emt 0:01:11]} 12. Rac1 {[%emt 0:00:42]} 1/2-1/2